[Event "HUN-chT Youth 2019"]
[Site "Budapest"]
[Date "2019.10.26"]
[Round "1.1"]
[White "Pasti, Aron"]
[Black "Krstulovic, Alex"]
[Result "0-1"]
[ECO "B11"]
[WhiteElo "2099"]
[BlackElo "2324"]
[Annotator "RC"]
[PlyCount "97"]
[EventDate "2019.10.26"]
[EventType "team-tourn"]
[EventCountry "HUN"]
[SourceTitle "playchess.com"]
[Source "ChessBase"]
[SourceQuality "1"]
[TimeControl "5400+30"]

1. e4 {[%emt 0:00:00]} c6 {[%emt 0:00:30]} 2. Nf3 {[%emt 0:00:00]} d5 {[%emt 0:00:04]} 3. Nc3 {[%emt 0:00:00]} dxe4 {[%emt 0:00:07]} 4. Nxe4 {[%emt 0:00:00]} Nf6 {[%emt 0:00:01]} 5. Nxf6+ {[%emt 0:00:00]} exf6 {[%emt 0:00:04]} 6. Bc4 {[%emt 0:05:17]} Bd6 {[%emt 0:04:32]} 7. O-O {[%emt 0:02:25]} O-O {[%emt 0:00:07]} 8. h3 {[%emt 0:02:03]} Nd7 {[%emt 0:04:48]} 9. d4 {[%emt 0:00:13]} Re8 {[%emt 0:03:45]} 10. Bd2 {[%emt 0:06:31]} Nf8 {[%emt 0:00:37]} 11. c3 {[%emt 0:00:21]} Bf5 {[%emt 0:11:12]} 12. Nh4 {[%emt 0:13:06]} Be4 {[%emt 0:05:39]} 13. f3 {[%emt 0:10:30]} Bd5 {[%emt 0:01:28]} 14. Bxd5 {[%emt 0:00:05]} cxd5 {[%emt 0:00:05]} 15. Nf5 {[%emt 0:06:05]} Bc7 {[%emt 0:01:06]} 16. f4 {[%emt 0:01:03]} Qd7 {[%emt 0:11:05]} 17. Qg4 {[%emt 0:12:32]} g6 {[%emt 0:00:39]} 18. Ng3 {[%emt 0:01:54]} f5 {[%emt 0:02:52]} 19. Qf3 {[%emt 0:01:43]} Ne6 {[%emt 0:06:19]} 20. Rae1 {[%emt 0:03:13]} Kg7 {[%emt 0:03:03]} 21. Nh1 {[%emt 0:06:39]} Qd6 {[%emt 0:06:47]} 22. g3 {[%emt 0:08:06]} h5 {[%emt 0:02:01]} 23. h4 {[%emt 0:04:53]} Rad8 {[%emt 0:03:18]} 24. Nf2 {[%emt 0:01:00]} Nf8 {[%emt 0:02:16]} 25. Rxe8 {[%emt 0:03:44]} Rxe8 {[%emt 0:00:02]} 26. Re1 {[%emt 0:00:11]} Rxe1+ {[%emt 0:00:37]} 27. Bxe1 {[%emt 0:00:04]} Nd7 {[%emt 0:00:39]} 28. Qe2 {[%emt 0:06:48]} Nf6 {[%emt 0:04:49]} 29. b3 {[%emt 0:00:47]} Bb6 {[%emt 0:03:02]} 30. Kg2 {[%emt 0:01:36]} Qa3 {[%emt 0:04:58]} 31. Qc2 {[%emt 0:00:59]} Qe7 {[%emt 0:04:13]} 32. Bd2 {[%emt 0:01:34]} Qc7 {[%emt 0:00:01]} 33. Qd3 {[%emt 0:01:09]} Qd6 {[%emt 0:00:04]} 34. Qe2 {[%emt 0:01:35]} Ba5 {[%emt 0:01:45]} 35. Qd3 {[%emt 0:00:31]} a6 {[%emt 0:00:29]} 36. Kf1 {[%emt 0:00:40]} b5 {[%emt 0:02:11]} 37. Kg2 {[%emt 0:00:26]} Qd7 {[%emt 0:01:03]} 38. Kh2 {[%emt 0:00:43]} Qc8 {[%emt 0:01:12]} 39. Qe3 {[%emt 0:00:33]} Qc6 {[%emt 0:01:22]} 40. Kg2 {[%emt 0:00:26]} Qd6 {[%emt 0:00:06]} 41. Qd3 {[%emt 0:00:12]} Ne4 {[%emt 0:01:37]} 42. Nxe4 {[%emt 0:00:32]} fxe4 {[%emt 0:00:01]} 43. Qb1 {[%emt 0:00:50]} Qd7 {[%emt 0:03:27]} 44. b4 {[%emt 0:00:28]} Qg4 {[%emt 0:00:22]} 45. Qf1 {[%emt 0:00:29]} Bd8 {[%emt 0:00:21]} 46. Kh2 {[%emt 0:00:27]} Kf6 {[%emt 0:00:49]} 47. Be3 {[%emt 0:00:33]} Qf3 {[%emt 0:00:40]} 48. Qf2 {[%emt 0:00:33]} Kf5 {[%emt 0:00:44]} 49. Kh3 {[%emt 0:00:33]} 0-1

[Event "HUN-chT Youth 2019"]
[Site "Budapest"]
[Date "2019.10.26"]
[Round "1.2"]
[White "Tancsa, Tamas"]
[Black "Kratzmajer, Akos Gyorgy"]
[Result "1-0"]
[ECO "C93"]
[WhiteElo "2082"]
[BlackElo "2004"]
[Annotator "NA"]
[PlyCount "45"]
[EventDate "2019.10.26"]
[EventType "team-tourn"]
[EventCountry "HUN"]
[SourceTitle "playchess.com"]
[Source "ChessBase"]
[SourceQuality "1"]
[TimeControl "5400+30"]

1. e4 {[%emt 0:00:00]} e5 {[%emt 0:00:00]} 2. Nf3 {[%emt 0:00:00]} Nc6 {[%emt 0:00:00]} 3. Bb5 {[%emt 0:00:16]} a6 {[%emt 0:00:00]} 4. Ba4 {[%emt 0:00:12]} Nf6 {[%emt 0:00:00]} 5. O-O {[%emt 0:00:14]} b5 {[%emt 0:00:05]} 6. Bb3 {[%emt 0:00:10]} d6 {[%emt 0:00:17]} 7. c3 {[%emt 0:01:02]} Be7 {[%emt 0:00:24]} 8. h3 {[%emt 0:00:35]} O-O {[%emt 0:00:23]} 9. d4 {[%emt 0:00:52]} Bb7 {[%emt 0:00:42]} 10. Nbd2 {[%emt 0:00:43]} Re8 {[%emt 0:01:31]} 11. Re1 {[%emt 0:00:32]} h6 {[%emt 0:00:36]} 12. Nf1 {[%emt 0:01:17]} Bf8 {[%emt 0:00:06]} 13. Ng3 {[%emt 0:00:13]} g6 {[%emt 0:00:07]} 14. a4 {[%emt 0:09:36]} Bg7 {[%emt 0:20:37]} 15. Nh4 {[%emt 0:09:57]} exd4 {[%emt 0:01:55]} 16. Nxg6 {[%emt 0:06:21]} dxc3 {[%emt 0:03:07]} 17. Nf5 {[%emt 0:14:34]} Nxe4 {[%emt 0:12:36]} 18. Qg4 {[%emt 0:01:44]} Ng5 {[%emt 0:03:08]} 19. Rxe8+ {[%emt 0:00:31]} Qxe8 {[%emt 0:00:01]} 20. Bxg5 {[%emt 0:00:13]} cxb2 {[%emt 0:05:50]} 21. Rb1 {[%emt 0:01:20]} Nd4 {[%emt 0:07:53]} 22. Nge7+ {[%emt 0:01:51]} Kh8 {[%emt 0:12:55]} 23. Nxg7 {[%emt 0:00:24]} 1-0

[Event "HUN-chT Youth 2019"]
[Site "Budapest"]
[Date "2019.10.26"]
[Round "1.3"]
[White "Pasti, Anna"]
[Black "Forgacs, Attila Jr."]
[Result "1/2-1/2"]
[ECO "A00"]
[WhiteElo "1884"]
[BlackElo "2104"]
[Annotator "ChessBase"]
[PlyCount "60"]
[EventDate "2019.10.26"]
[EventType "team-tourn"]
[EventCountry "HUN"]
[SourceTitle "playchess.com"]
[Source "ChessBase"]
[SourceQuality "1"]
[TimeControl "5400+30"]

1. g3 {[%emt 0:00:00]} g6 {[%emt 0:00:00]} 2. Bg2 {[%emt 0:00:00]} Bg7 {[%emt 0:00:00]} 3. d3 {[%emt 0:00:00]} d6 {[%emt 0:02:20]} 4. e3 {[%emt 0:00:31]} e5 {[%emt 0:01:11]} 5. Ne2 {[%emt 0:00:13]} f5 {[%emt 0:02:00]} 6. f4 {[%emt 0:01:08]} Nf6 {[%emt 0:01:35]} 7. O-O {[%emt 0:01:11]} O-O {[%emt 0:02:13]} 8. Nd2 {[%emt 0:01:17]} c6 {[%emt 0:05:30]} 9. Nc4 {[%emt 0:08:27]} Qc7 {[%emt 0:04:29]} 10. fxe5 {[%emt 0:03:13]} dxe5 {[%emt 0:00:34]} 11. Nc3 {[%emt 0:00:23]} Be6 {[%emt 0:01:06]} 12. e4 {[%emt 0:02:35]} Bxc4 {[%emt 0:14:36]} 13. dxc4 {[%emt 0:06:08]} fxe4 {[%emt 0:05:46]} 14. Nxe4 {[%emt 0:05:01]} Nxe4 {[%emt 0:02:11]} 15. Rxf8+ {[%emt 0:00:51]} Bxf8 {[%emt 0:00:12]} 16. Bxe4 {[%emt 0:00:15]} Nd7 {[%emt 0:10:09]} 17. Be3 {[%emt 0:07:24]} Bc5 {[%emt 0:05:17]} 18. Qd3 {[%emt 0:08:34]} Bxe3+ {[%emt 0:07:49]} 19. Qxe3 {[%emt 0:00:32]} Qb6 {[%emt 0:01:40]} 20. Qxb6 {[%emt 0:01:39]} Nxb6 {[%emt 0:00:43]} 21. b3 {[%emt 0:04:18]} Rd8 {[%emt 0:00:58]} 22. c5 {[%emt 0:01:54]} Nc8 {[%emt 0:03:23]} 23. Re1 {[%emt 0:02:00]} Kg7 {[%emt 0:11:50]} 24. Bd3 {[%emt 0:00:55]} Kf6 {[%emt 0:07:23]} 25. Rf1+ {[%emt 0:02:17]} Ke7 {[%emt 0:00:26]} 26. Re1 {[%emt 0:01:06]} Kf6 {[%emt 0:00:54]} 27. Rf1+ {[%emt 0:00:25]} Ke7 {[%emt 0:00:11]} 28. Re1 {[%emt 0:00:51]} Kf6 {[%emt 0:00:12]} 29. Rf1+ {[%emt 0:00:07]} Ke7 {[%emt 0:00:04]} 30. Re1 {[%emt 0:00:08]} Kf6 {[%emt 0:00:14]} 1/2-1/2

[Event "HUN-chT Youth 2019"]
[Site "Budapest"]
[Date "2019.10.26"]
[Round "1.4"]
[White "Toth, Nikoletta"]
[Black "Kobol, Kitti"]
[Result "1-0"]
[ECO "D06"]
[WhiteElo "1965"]
[BlackElo "1312"]
[Annotator "NA"]
[PlyCount "41"]
[EventDate "2019.10.26"]
[EventType "team-tourn"]
[EventCountry "HUN"]
[SourceTitle "playchess.com"]
[Source "ChessBase"]
[SourceQuality "1"]
[TimeControl "5400+30"]

1. d4 {[%emt 0:00:00]} d5 {[%emt 0:00:00]} 2. Bf4 {[%emt 0:00:00]} Bf5 {[%emt 0:00:35]} 3. c4 {[%emt 0:02:33]} e6 {[%emt 0:01:29]} 4. Nc3 {[%emt 0:00:17]} Nf6 {[%emt 0:00:58]} 5. e3 {[%emt 0:05:27]} Be7 {[%emt 0:06:52]} 6. Qb3 {[%emt 0:13:30]} b6 {[%emt 0:13:51]} 7. cxd5 {[%emt 0:03:11]} exd5 {[%emt 0:02:50]} 8. Nb5 {[%emt 0:04:44]} Na6 {[%emt 0:03:27]} 9. Qa4 {[%emt 0:02:25]} c6 {[%emt 0:09:03]} 10. Nd6+ {[%emt 0:12:44]} Bxd6 {[%emt 0:01:52]} 11. Qxc6+ {[%emt 0:00:05]} Bd7 {[%emt 0:01:01]} 12. Qxd6 {[%emt 0:00:16]} Nb8 {[%emt 0:01:15]} 13. Nf3 {[%emt 0:24:06]} Qc8 {[%emt 0:12:27]} 14. Bd3 {[%emt 0:03:52]} Be6 {[%emt 0:02:32]} 15. O-O {[%emt 0:01:08]} Nbd7 {[%emt 0:01:41]} 16. Ng5 {[%emt 0:06:01]} Bg4 {[%emt 0:02:30]} 17. f3 {[%emt 0:06:17]} Bh5 {[%emt 0:01:53]} 18. e4 {[%emt 0:00:17]} dxe4 {[%emt 0:11:00]} 19. Nxe4 {[%emt 0:01:42]} Kd8 {[%emt 0:03:51]} 20. Nxf6 {[%emt 0:02:48]} gxf6 {[%emt 0:00:14]} 21. Rfe1 {[%emt 0:00:22]} 1-0

[Event "HUN-chT Youth 2019"]
[Site "Budapest"]
[Date "2019.10.26"]
[Round "1.5"]
[White "Vidak, Boglarka"]
[Black "Bernath, Bence"]
[Result "0-1"]
[ECO "C55"]
[WhiteElo "1277"]
[BlackElo "2004"]
[Annotator "NA"]
[PlyCount "68"]
[EventDate "2019.10.26"]
[EventType "team-tourn"]
[EventCountry "HUN"]
[SourceTitle "playchess.com"]
[Source "ChessBase"]
[SourceQuality "1"]
[TimeControl "5400+30"]

1. e4 {[%emt 0:00:00]} e5 {[%emt 0:00:16]} 2. Nf3 {[%emt 0:00:00]} Nc6 {[%emt 0:00:28]} 3. Bc4 {[%emt 0:00:00]} Nf6 {[%emt 0:00:27]} 4. d3 {[%emt 0:02:26]} h6 {[%emt 0:00:53]} 5. Nc3 {[%emt 0:00:09]} d6 {[%emt 0:00:32]} 6. O-O {[%emt 0:00:52]} g5 {[%emt 0:00:33]} 7. Ne2 {[%emt 0:03:26]} Bg7 {[%emt 0:01:00]} 8. h3 {[%emt 0:04:26]} O-O {[%emt 0:01:27]} 9. d4 {[%emt 0:01:41]} exd4 {[%emt 0:05:24]} 10. Nexd4 {[%emt 0:02:33]} Nxe4 {[%emt 0:00:22]} 11. Bd5 {[%emt 0:09:35]} Nxd4 {[%emt 0:01:21]} 12. Nxd4 {[%emt 0:00:50]} Nf6 {[%emt 0:00:16]} 13. Bb3 {[%emt 0:01:45]} d5 {[%emt 0:03:25]} 14. Qf3 {[%emt 0:11:34]} c5 {[%emt 0:08:07]} 15. Nf5 {[%emt 0:10:47]} Bxf5 {[%emt 0:01:27]} 16. Qxf5 {[%emt 0:00:08]} c4 {[%emt 0:00:07]} 17. Ba4 {[%emt 0:01:09]} Qa5 {[%emt 0:00:34]} 18. Bd7 {[%emt 0:00:15]} Rad8 {[%emt 0:00:19]} 19. Be6 {[%emt 0:01:09]} fxe6 {[%emt 0:03:34]} 20. Qxe6+ {[%emt 0:00:07]} Kh8 {[%emt 0:00:09]} 21. Qe3 {[%emt 0:05:04]} Rde8 {[%emt 0:01:02]} 22. Bd2 {[%emt 0:05:35]} Rxe3 {[%emt 0:01:35]} 23. Bxa5 {[%emt 0:00:09]} Re2 {[%emt 0:00:10]} 24. Rac1 {[%emt 0:00:23]} Ne4 {[%emt 0:00:09]} 25. f3 {[%emt 0:04:05]} Bd4+ {[%emt 0:03:09]} 26. Kh2 {[%emt 0:00:19]} Be5+ {[%emt 0:00:05]} 27. Kg1 {[%emt 0:00:13]} Ng3 {[%emt 0:00:16]} 28. Rfe1 {[%emt 0:01:02]} Bxb2 {[%emt 0:05:18]} 29. Rcd1 {[%emt 0:03:19]} Rfe8 {[%emt 0:00:10]} 30. Rxe2 {[%emt 0:00:29]} Nxe2+ {[%emt 0:00:45]} 31. Kf2 {[%emt 0:08:37]} d4 {[%emt 0:01:26]} 32. Rd2 {[%emt 0:01:44]} d3 {[%emt 0:00:07]} 33. cxd3 {[%emt 0:00:22]} Bd4+ {[%emt 0:00:07]} 34. Kf1 {[%emt 0:00:43]} Ng3# {[%emt 0:00:30]} 0-1

[Event "HUN-chT Youth 2019"]
[Site "Budapest"]
[Date "2019.10.26"]
[Round "1.6"]
[White "Buri, Kata"]
[Black "Suli, Henrietta"]
[Result "1-0"]
[ECO "C31"]
[WhiteElo "1646"]
[BlackElo "1207"]
[Annotator "NA"]
[PlyCount "55"]
[EventDate "2019.10.26"]
[EventType "team-tourn"]
[EventCountry "HUN"]
[SourceTitle "playchess.com"]
[Source "ChessBase"]
[SourceQuality "1"]
[TimeControl "5400+30"]

1. e4 {[%emt 0:00:00]} e5 {[%emt 0:00:00]} 2. f4 {[%emt 0:00:00]} d5 {[%emt 0:02:18]} 3. exd5 {[%emt 0:01:17]} Qxd5 {[%emt 0:02:21]} 4. Nc3 {[%emt 0:01:04]} Qd8 {[%emt 0:01:38]} 5. Nf3 {[%emt 0:04:08]} Bg4 {[%emt 0:05:51]} 6. Bc4 {[%emt 0:01:33]} Nc6 {[%emt 0:03:07]} 7. h3 {[%emt 0:02:38]} Bh5 {[%emt 0:01:21]} 8. g4 {[%emt 0:03:12]} e4 {[%emt 0:05:19]} 9. Nxe4 {[%emt 0:06:44]} f5 {[%emt 0:02:47]} 10. Nf2 {[%emt 0:04:39]} Bg6 {[%emt 0:02:43]} 11. Qe2+ {[%emt 0:03:07]} Be7 {[%emt 0:02:39]} 12. d3 {[%emt 0:01:38]} Nf6 {[%emt 0:06:04]} 13. Bd2 {[%emt 0:02:49]} Rf8 {[%emt 0:05:05]} 14. O-O-O {[%emt 0:03:59]} Qd6 {[%emt 0:01:23]} 15. Be6 {[%emt 0:11:06]} Nd7 {[%emt 0:08:29]} 16. Kb1 {[%emt 0:06:51]} Nc5 {[%emt 0:02:45]} 17. Bc4 {[%emt 0:02:45]} O-O-O {[%emt 0:02:54]} 18. Bb5 {[%emt 0:02:46]} Be8 {[%emt 0:04:55]} 19. Rde1 {[%emt 0:03:04]} Nd4 {[%emt 0:02:55]} 20. Nxd4 {[%emt 0:00:13]} Qxd4 {[%emt 0:01:04]} 21. Qxe7 {[%emt 0:03:55]} Rf7 {[%emt 0:04:45]} 22. Qxe8 {[%emt 0:02:32]} Rf6 {[%emt 0:07:09]} 23. Bc3 {[%emt 0:02:22]} Qd6 {[%emt 0:03:27]} 24. Bxf6 {[%emt 0:01:46]} gxf6 {[%emt 0:00:39]} 25. Qxd8+ {[%emt 0:00:20]} Qxd8 {[%emt 0:01:15]} 26. Re8 {[%emt 0:00:05]} c6 {[%emt 0:00:58]} 27. Rxd8+ {[%emt 0:00:08]} Kxd8 {[%emt 0:00:11]} 28. Bc4 {[%emt 0:00:04]} 1-0

[Event "HUN-chT Youth 2019"]
[Site "Budapest"]
[Date "2019.10.26"]
[Round "1.7"]
[White "Geher, Koppany"]
[Black "Varga, Marcell"]
[Result "1-0"]
[ECO "C90"]
[WhiteElo "2256"]
[BlackElo "2118"]
[Annotator "ChessBase"]
[PlyCount "97"]
[EventDate "2019.10.26"]
[EventType "team-tourn"]
[EventCountry "HUN"]
[SourceTitle "playchess.com"]
[Source "ChessBase"]
[SourceQuality "1"]
[TimeControl "5400+30"]

1. e4 {[%emt 0:00:00]} e5 {[%emt 0:00:19]} 2. Nf3 {[%emt 0:00:00]} Nc6 {[%emt 0:00:06]} 3. Bb5 {[%emt 0:00:00]} a6 {[%emt 0:00:09]} 4. Ba4 {[%emt 0:00:00]} Nf6 {[%emt 0:00:14]} 5. O-O {[%emt 0:00:01]} Be7 {[%emt 0:00:51]} 6. Re1 {[%emt 0:00:07]} b5 {[%emt 0:00:42]} 7. Bb3 {[%emt 0:00:05]} d6 {[%emt 0:00:11]} 8. a4 {[%emt 0:00:24]} b4 {[%emt 0:04:20]} 9. d4 {[%emt 0:00:38]} exd4 {[%emt 0:04:21]} 10. Nxd4 {[%emt 0:00:56]} Bd7 {[%emt 0:00:48]} 11. Nf5 {[%emt 0:25:54]} Bxf5 {[%emt 0:01:08]} 12. exf5 {[%emt 0:00:01]} O-O {[%emt 0:00:25]} 13. a5 {[%emt 0:03:46]} Rb8 {[%emt 0:07:59]} 14. Bc4 {[%emt 0:19:20]} d5 {[%emt 0:10:15]} 15. Bd3 {[%emt 0:04:28]} Ne4 {[%emt 0:06:44]} 16. Nd2 {[%emt 0:07:39]} Nc5 {[%emt 0:02:23]} 17. Bf1 {[%emt 0:04:49]} Nd4 {[%emt 0:04:18]} 18. Nb3 {[%emt 0:03:46]} Nxf5 {[%emt 0:15:00]} 19. Nxc5 {[%emt 0:02:05]} Bxc5 {[%emt 0:00:07]} 20. Bxa6 {[%emt 0:11:31]} Qh4 {[%emt 0:05:32]} 21. Rf1 {[%emt 0:00:05]} Bd6 {[%emt 0:09:22]} 22. g3 {[%emt 0:04:59]} Qh3 {[%emt 0:09:33]} 23. Qxd5 {[%emt 0:03:17]} Rfe8 {[%emt 0:01:16]} 24. Qg2 {[%emt 0:02:00]} Qg4 {[%emt 0:00:27]} 25. Bd3 {[%emt 0:00:47]} h5 {[%emt 0:01:51]} 26. h3 {[%emt 0:02:29]} Qg6 {[%emt 0:00:30]} 27. g4 {[%emt 0:02:01]} hxg4 {[%emt 0:00:03]} 28. hxg4 {[%emt 0:00:00]} Nh4 {[%emt 0:00:20]} 29. Bxg6 {[%emt 0:00:55]} Nxg2 {[%emt 0:00:02]} 30. Kxg2 {[%emt 0:01:19]} fxg6 {[%emt 0:00:02]} 31. Be3 {[%emt 0:00:24]} Ra8 {[%emt 0:00:35]} 32. a6 {[%emt 0:00:35]} Be5 {[%emt 0:01:56]} 33. Rfb1 {[%emt 0:00:13]} Red8 {[%emt 0:03:05]} 34. Ra4 {[%emt 0:00:51]} Bd4 {[%emt 0:00:27]} 35. Rd1 {[%emt 0:01:08]} Bxe3 {[%emt 0:02:32]} 36. Rxd8+ {[%emt 0:00:03]} Rxd8 {[%emt 0:00:01]} 37. fxe3 {[%emt 0:00:11]} Ra8 {[%emt 0:00:21]} 38. a7 {[%emt 0:00:07]} Kf7 {[%emt 0:00:06]} 39. Kf3 {[%emt 0:00:11]} Ke6 {[%emt 0:00:02]} 40. Kf4 {[%emt 0:00:13]} c5 {[%emt 0:00:49]} 41. Ke4 {[%emt 0:00:44]} Kd6 {[%emt 0:00:36]} 42. Ra6+ {[%emt 0:00:08]} Kc7 {[%emt 0:00:10]} 43. Kd5 {[%emt 0:00:35]} Kb7 {[%emt 0:00:04]} 44. Ra1 {[%emt 0:01:45]} Kb6 {[%emt 0:00:16]} 45. e4 {[%emt 0:00:17]} Rd8+ {[%emt 0:00:24]} 46. Ke6 {[%emt 0:00:21]} Ra8 {[%emt 0:00:14]} 47. e5 {[%emt 0:00:07]} Rxa7 {[%emt 0:01:56]} 48. Rxa7 {[%emt 0:00:08]} Kxa7 {[%emt 0:00:02]} 49. Kd7 {[%emt 0:00:22]} 1-0

[Event "HUN-chT Youth 2019"]
[Site "Budapest"]
[Date "2019.10.26"]
[Round "1.8"]
[White "Gyurika, Tamas"]
[Black "Ongut, Tamas Gunes"]
[Result "0-1"]
[ECO "B23"]
[WhiteElo "1920"]
[BlackElo "2214"]
[Annotator "ChessBase"]
[PlyCount "78"]
[EventDate "2019.10.26"]
[EventType "team-tourn"]
[EventCountry "HUN"]
[SourceTitle "playchess.com"]
[Source "ChessBase"]
[SourceQuality "1"]
[TimeControl "5400+30"]

1. e4 {[%emt 0:00:00]} c5 {[%emt 0:00:50]} 2. Nc3 {[%emt 0:01:19]} e6 {[%emt 0:02:53]} 3. f4 {[%emt 0:01:39]} Nc6 {[%emt 0:00:19]} 4. Nf3 {[%emt 0:01:58]} a6 {[%emt 0:00:19]} 5. d3 {[%emt 0:04:38]} b5 {[%emt 0:01:36]} 6. Be2 {[%emt 0:04:34]} Bb7 {[%emt 0:10:44]} 7. O-O {[%emt 0:05:25]} Qc7 {[%emt 0:05:35]} 8. Be3 {[%emt 0:06:04]} Nf6 {[%emt 0:02:54]} 9. h3 {[%emt 0:03:46]} d5 {[%emt 0:06:21]} 10. e5 {[%emt 0:03:27]} d4 {[%emt 0:00:46]} 11. exf6 {[%emt 0:00:27]} dxe3 {[%emt 0:00:07]} 12. Ne4 {[%emt 0:02:42]} Nb4 {[%emt 0:12:45]} 13. fxg7 {[%emt 0:13:46]} Bxg7 {[%emt 0:00:03]} 14. c3 {[%emt 0:01:54]} Nd5 {[%emt 0:00:19]} 15. Ne5 {[%emt 0:04:58]} O-O-O {[%emt 0:02:53]} 16. d4 {[%emt 0:02:48]} Nxf4 {[%emt 0:01:02]} 17. Nxc5 {[%emt 0:03:05]} Bxe5 {[%emt 0:04:19]} 18. Bf3 {[%emt 0:01:08]} Qxc5 {[%emt 0:01:22]} 19. Bxb7+ {[%emt 0:01:51]} Kxb7 {[%emt 0:00:31]} 20. dxc5 {[%emt 0:08:32]} Rxd1 {[%emt 0:00:06]} 21. Rfxd1 {[%emt 0:00:10]} Rg8 {[%emt 0:00:16]} 22. g4 {[%emt 0:02:34]} Nxh3+ {[%emt 0:01:01]} 23. Kg2 {[%emt 0:01:59]} Nf2 {[%emt 0:01:06]} 24. Rd7+ {[%emt 0:00:21]} Kc6 {[%emt 0:00:07]} 25. Rxf7 {[%emt 0:00:03]} Rxg4+ {[%emt 0:01:11]} 26. Kf3 {[%emt 0:00:19]} Rg3+ {[%emt 0:00:05]} 27. Ke2 {[%emt 0:00:33]} Ng4 {[%emt 0:02:20]} 28. Rxh7 {[%emt 0:03:03]} Kd5 {[%emt 0:00:10]} 29. Rhh1 {[%emt 0:04:19]} Nf6 {[%emt 0:05:07]} 30. Rag1 {[%emt 0:01:31]} Ne4 {[%emt 0:00:16]} 31. Rd1+ {[%emt 0:04:07]} Kxc5 {[%emt 0:00:21]} 32. Rh5 {[%emt 0:00:29]} Ng5 {[%emt 0:00:24]} 33. Rd3 {[%emt 0:02:10]} Bf4 {[%emt 0:00:08]} 34. Rd4 {[%emt 0:01:23]} Rg2+ {[%emt 0:00:33]} 35. Ke1 {[%emt 0:02:11]} Bg3+ {[%emt 0:00:21]} 36. Kf1 {[%emt 0:00:32]} e2+ {[%emt 0:00:55]} 37. Kxg2 {[%emt 0:00:06]} e1=Q {[%emt 0:00:33]} 38. Rxg5+ {[%emt 0:00:11]} Be5 {[%emt 0:00:35]} 39. Kf3 {[%emt 0:00:40]} Qf1+ {[%emt 0:00:43]} 0-1

[Event "HUN-chT Youth 2019"]
[Site "Budapest"]
[Date "2019.10.26"]
[Round "1.9"]
[White "Virag, Balint"]
[Black "Blahota, Marcell"]
[Result "1-0"]
[ECO "B12"]
[WhiteElo "2100"]
[BlackElo "1765"]
[Annotator "ChessBase"]
[PlyCount "93"]
[EventDate "2019.10.26"]
[EventType "team-tourn"]
[EventCountry "HUN"]
[SourceTitle "playchess.com"]
[Source "ChessBase"]
[SourceQuality "1"]
[TimeControl "5400+30"]

1. e4 {[%emt 0:00:00]} c6 {[%emt 0:00:00]} 2. d4 {[%emt 0:00:00]} d5 {[%emt 0:00:05]} 3. e5 {[%emt 0:00:00]} Bf5 {[%emt 0:00:10]} 4. h4 {[%emt 0:00:00]} h6 {[%emt 0:00:21]} 5. g4 {[%emt 0:00:03]} Bh7 {[%emt 0:01:41]} 6. e6 {[%emt 0:00:56]} fxe6 {[%emt 0:02:30]} 7. Bd3 {[%emt 0:00:03]} Nf6 {[%emt 0:02:42]} 8. Bxh7 {[%emt 0:01:01]} Rxh7 {[%emt 0:01:01]} 9. Qd3 {[%emt 0:00:27]} Qd6 {[%emt 0:01:44]} 10. Qg6+ {[%emt 0:01:47]} Kd8 {[%emt 0:00:44]} 11. Nf3 {[%emt 0:00:42]} Nbd7 {[%emt 0:02:02]} 12. g5 {[%emt 0:01:11]} hxg5 {[%emt 0:03:11]} 13. Nxg5 {[%emt 0:00:26]} Rh6 {[%emt 0:01:16]} 14. Nf7+ {[%emt 0:00:59]} Kc7 {[%emt 0:00:10]} 15. Bxh6 {[%emt 0:01:00]} Qb4+ {[%emt 0:01:21]} 16. Bd2 {[%emt 0:00:22]} Qxb2 {[%emt 0:00:26]} 17. Bc3 {[%emt 0:00:15]} Qc1+ {[%emt 0:00:37]} 18. Ke2 {[%emt 0:00:09]} Qxh1 {[%emt 0:00:26]} 19. Qg3+ {[%emt 0:00:13]} e5 {[%emt 0:07:58]} 20. Nd2 {[%emt 0:00:08]} Ne4 {[%emt 0:01:10]} 21. Rxh1 {[%emt 0:01:08]} Nxg3+ {[%emt 0:00:46]} 22. fxg3 {[%emt 0:00:11]} e4 {[%emt 0:05:46]} 23. h5 {[%emt 0:03:13]} Nf6 {[%emt 0:01:36]} 24. Nf1 {[%emt 0:02:29]} e6 {[%emt 0:02:40]} 25. Ne3 {[%emt 0:02:25]} Be7 {[%emt 0:07:46]} 26. g4 {[%emt 0:02:20]} Rf8 {[%emt 0:03:54]} 27. Ne5 {[%emt 0:01:23]} Nh7 {[%emt 0:02:33]} 28. Be1 {[%emt 0:03:45]} Bg5 {[%emt 0:07:32]} 29. Rf1 {[%emt 0:04:51]} Rxf1 {[%emt 0:16:14]} 30. Nxf1 {[%emt 0:00:04]} Bf4 {[%emt 0:01:57]} 31. Bg3 {[%emt 0:01:25]} Bxg3 {[%emt 0:01:22]} 32. Nxg3 {[%emt 0:00:02]} Kd6 {[%emt 0:00:22]} 33. Ke3 {[%emt 0:02:09]} Ng5 {[%emt 0:01:08]} 34. Ne2 {[%emt 0:01:00]} c5 {[%emt 0:02:58]} 35. c3 {[%emt 0:00:09]} b5 {[%emt 0:06:39]} 36. Kf4 {[%emt 0:04:49]} Nh3+ {[%emt 0:01:16]} 37. Kg3 {[%emt 0:00:09]} Ng5 {[%emt 0:00:08]} 38. Kh4 {[%emt 0:01:34]} Nh7 {[%emt 0:02:34]} 39. g5 {[%emt 0:01:26]} b4 {[%emt 0:03:03]} 40. Nf7+ {[%emt 0:00:50]} Ke7 {[%emt 0:00:06]} 41. dxc5 {[%emt 0:00:26]} bxc3 {[%emt 0:00:43]} 42. Nxc3 {[%emt 0:00:11]} e3 {[%emt 0:00:59]} 43. Ne2 {[%emt 0:00:26]} Nf8 {[%emt 0:01:26]} 44. Ne5 {[%emt 0:00:16]} Ke8 {[%emt 0:03:28]} 45. h6 {[%emt 0:01:33]} gxh6 {[%emt 0:00:17]} 46. gxh6 {[%emt 0:00:02]} Ke7 {[%emt 0:00:15]} 47. Kg5 {[%emt 0:00:18]} 1-0